lending/lending_fUSD_20240830
["ID","MTS","AMOUNT","RATE_DAILY","PERIOD"]
[336694501,1725035438330,-17403.48,0.00010973,2]
[336694572,1725035439473,3000.0,0.0001086,2]
[336694578,1725035440103,-856.77195944,0.00010972,2]
[336694579,1725035440113,-79950.4012791,0.00010972,2]
[336694580,1725035440122,-1472056.22775301,0.00010973,2]
[336694581,1725035440157,-1094.57625342,0.00010973,2]
[336694582,1725035440215,-5955.8175372,0.00010973,2]
[336694583,1725035440274,-290.29,0.00010973,2]
[336694584,1725035440333,-639.35494632,0.00010973,2]
[336694585,1725035440350,-1027.23639687,0.00010973,2]
[336694586,1725035440447,-840.77658634,0.00010973,2]
[336694587,1725035440459,-584.21,0.00010973,2]
[336694614,1725035441230,-2002.00008008,0.00010973,2]
[336694646,1725035443103,-2174.2846125,0.00010973,2]
[336694655,1725035443214,-2900.0,0.00010973,2]
[336694693,1725035446099,-1449.783764,0.00010973,2]
[336694694,1725035446110,-2900.0,0.00010973,2]
[336694695,1725035446167,-4939.6596,0.00010973,2]
[336694696,1725035446237,-19062.19225887,0.00010973,2]
[336694697,1725035446250,-549.96057904,0.00010973,2]
[336694698,1725035446303,-580.0,0.00010973,2]
[336694699,1725035500481,150.0,0.00010863,2]
[336694700,1725035501303,150.0,0.00010902,2]
[336694701,1725035501341,150.0,0.00010898,2]
[336694702,1725035501373,150.0,0.00010809,2]
[336694703,1725035501415,150.0,0.00010926,2]
[336694704,1725035501448,150.0,0.00010766,2]
[336694705,1725035501515,150.0,0.00010891,2]
[336694706,1725035501568,150.0,0.00010936,2]
[336694707,1725035501634,150.0,0.00010916,2]
[336694708,1725035501676,150.0,0.00010757,2]
[336694709,1725035501726,150.0,0.00010755,2]
[336694710,1725035501773,684.69461426,0.00010951,2]
[336694711,1725035501894,150.0,0.000107,2]
[336694712,1725035501954,150.0,0.00010867,2]
[336694713,1725035502188,150.0,0.00010848,2]
[336694714,1725035502254,152.64908017,0.00010719,2]
[336694715,1725035502312,150.0,0.00010803,2]
[336694716,1725035502424,150.0,0.00010859,2]
[336694717,1725035503013,171.21,0.00010959,2]
[336694718,1725035507677,153.39746,0.00010863,2]
[336694719,1725035513577,856.05,0.00010959,2]
[336694720,1725035514035,213.7279,0.00010873,2]
[336694721,1725035515326,500.0,0.0001,2]
[336694722,1725035515476,500.0,0.0001,2]
[336694723,1725035516073,500.0,0.0001,2]
[336694724,1725035516235,500.0,0.0001,2]
[336694725,1725035516833,500.0,0.0001,2]
[336694726,1725035517012,500.0,0.0001,2]
[336694727,1725035517609,500.0,0.0001,2]
[336694728,1725035517780,500.0,0.0001,2]
[336694729,1725035518418,500.0,0.0001,2]
[336694730,1725035518678,500.0,0.0001,2]
[336694731,1725035519186,500.0,0.0001,2]
[336694732,1725035519437,500.0,0.0001,2]
[336694733,1725035519962,500.0,0.0001,2]
[336694734,1725035520183,500.0,0.0001,2]
[336694735,1725035520717,500.0,0.0001,2]
[336694736,1725035520932,500.0,0.0001,2]
[336694737,1725035521471,500.0,0.0001,2]
[336694738,1725035522213,500.0,0.0001,2]
[336694739,1725035522297,500.0,0.0001,2]
[336694740,1725035522448,500.0,0.0001,2]
[336694741,1725035523069,500.0,0.0001,2]
[336694742,1725035523217,500.0,0.0001,2]
[336694743,1725035523473,150.0,0.00010959,2]
[336694744,1725035523989,500.0,0.0001,2]
[336694745,1725035524264,500.0,0.0001,2]
[336694746,1725035524781,500.0,0.0001,2]
[336694747,1725035525102,500.0,0.0001,2]
[336694748,1725035525869,500.0,0.0001,2]
[336694749,1725035526211,382.18,0.00010168,2]
[336694750,1725035526498,382.18,0.00010171,2]
[336694751,1725035526733,382.18,0.00010173,2]
[336694752,1725035527294,500.0,0.0001,2]
[336694753,1725035527800,500.0,0.0001,2]
[336694754,1725035528052,389.49,0.0001,2]
[336694755,1725035528386,382.18,0.00010176,2]
[336694756,1725035528588,500.0,0.0001,2]
[336694757,1725035528618,382.18,0.00010179,2]
[336694758,1725035528827,382.18,0.00010181,2]
[336694759,1725035529045,382.18,0.00010184,2]
[336694760,1725035529301,382.18,0.00010187,2]
[336694761,1725035529365,212.21,0.0001,2]
[336694762,1725035529534,382.18,0.0001019,2]
[336694763,1725035529734,382.18,0.00010192,2]
[336694764,1725035530027,382.18,0.00010195,2]
[336694765,1725035530279,382.18,0.00010198,2]
[336694766,1725035530498,382.18,0.000102,2]
[336694767,1725035530732,382.18,0.00010203,2]
[336694768,1725035530965,382.18,0.00010206,2]
[336694769,1725035531167,382.18,0.00010208,2]
[336694770,1725035531554,382.18,0.00010211,2]
[336694771,1725035531786,382.18,0.00010214,2]
[336694772,1725035532183,382.18,0.00010216,2]
[336694773,1725035533148,382.18,0.00010219,2]
[336694774,1725035534978,175.79,0.00010959,2]
[336694775,1725035540063,227.149,0.00010872,2]
[336694776,1725035540307,466.3484,0.00010873,2]
[336694777,1725035547507,343.1771,0.00010873,2]
[336694778,1725035552652,347.122483,0.0001091,2]
[336694779,1725035557559,326.1077,0.00010873,2]
[336694780,1725035566552,292.8626,0.00010873,2]
[336694781,1725035566637,787.401,0.00010873,2]
[336694782,1725035569216,310.78259027,0.00010873,2]
[336694783,1725035574018,1437.82,8.274e-05,2]
[336694784,1725035574265,1437.82,0.00010538,2]
[336694785,1725035575721,213.206,0.00010873,2]
[336694786,1725035578854,247.2956,0.00010873,2]
[336694787,1725035590097,354.88240184,0.00010873,2]
[336694788,1725035592129,200.0,0.00010138,2]
[336694789,1725035595083,500.0,0.00010959,2]
[336694790,1725035616913,500.0,0.00010959,2]
[336694791,1725035623362,739.1303,0.00010873,2]
[336694792,1725035623565,500.0,0.00010885,2]
[336694793,1725035632663,250.0,0.00010157,2]
[336694794,1725035633810,260.3744,0.00010873,2]
[336694795,1725035636769,1210.0,0.000109,2]
[336694797,1725035640830,459.6124,0.00010866,2]
[336694798,1725035643718,238.47,0.00010959,2]
[336694799,1725035644674,200.0,0.00010959,2]
[336694806,1725035662685,394.72377583,0.00010873,2]
[336694807,1725035664566,236.7166,0.00010873,2]
[336694808,1725035665618,474.56127833,0.00010873,2]
[336694809,1725035670512,826.5722,0.00010873,2]
[336694810,1725035671784,726.95734631,0.00010865,2]
[336694811,1725035675331,152.34,8.126e-05,2]
[336694812,1725035675699,152.34,0.00010157,2]
[336694813,1725035676729,179.96437063,0.00010873,2]
[336694814,1725035684610,200.0,0.00010192,2]
[336694815,1725035686315,401.08,0.00010133,2]
[336694816,1725035689582,332.79,0.00010133,2]
[336694817,1725035690839,3276.7843969,0.00010873,2]
[336694818,1725035699045,3955.08201511,0.00010899,2]
[336694819,1725035705229,813.6030882,0.000109,2]
[336694820,1725035709066,340.3042,0.00010873,2]
[336694821,1725035744045,179.36,0.00010681,2]
[336694822,1725035755434,956.07,0.00010214,2]
[336694823,1725035757512,289.9408,0.00010872,2]
[336694824,1725035763244,10000.0,0.00010442,2]
[336694825,1725035764045,10000.0,0.00010442,2]
[336694826,1725035764798,10000.0,0.00010442,2]
[336694827,1725035765555,10000.0,0.00010442,2]
[336694828,1725035766290,4153.89198718,0.00010442,2]
[336694829,1725035776972,494.98605906,0.00010873,2]
[336694830,1725035782536,1379.06374948,0.00010873,2]
[336694831,1725035787325,1833.82,0.00010311,2]
[336694832,1725035791692,23900.0,0.00010147,2]
[336694833,1725035804558,310.78259016,0.00010873,2]
[336694834,1725035807053,3000.0,0.0001086,2]
[336694835,1725035811312,240.91,0.00010959,2]
[336694836,1725035820721,209.21,0.00010311,2]
[336694837,1725035837052,260.3744,0.00010866,2]
[336694838,1725035846364,170.24,0.00010133,2]
[336694839,1725035856124,500.0,8.22e-05,2]
[336694840,1725035857746,500.0,9.59e-05,2]
[336694841,1725035906582,469.33497757,0.00010948,2]
[336694842,1725035906612,150.0,0.00010713,2]
[336694843,1725035906641,222.94150994,0.00010767,2]
[336694844,1725035906670,1500.0,0.00010899,2]
[336694845,1725035931551,388.14,0.00010153,2]
[336694846,1725035960349,250.0,0.00010072,2]
[336694847,1725035962288,432.1752,0.00010872,2]
[336694848,1725035962317,180.33,0.00010959,2]
[336694849,1725035965612,956.4929,0.00010872,2]
[336694850,1725035974329,500.0,8.22e-05,2]
[336694851,1725035975955,500.0,0.0001096,2]
[336694852,1725035985501,283.775,0.00010872,2]
[336694853,1725035988977,157.59,7.352e-05,2]
[336694854,1725035991882,166.67060189,0.000109,2]
[336694855,1725036004933,2000.0,0.0001096,2]
[336694856,1725036009584,444.32,0.00010076,2]
[336694857,1725036013447,464.634,0.00010959,2]
[336694858,1725036019455,357.26886149,0.00010899,2]
[336694859,1725036022878,15896.3416,0.00010873,2]
[336694860,1725036024474,357.26886148,0.00010899,2]
[336694861,1725036029477,357.26886148,0.00010899,2]
[336694862,1725036031243,159.12,0.00010601,2]
[336694863,1725036031322,193.03,0.00010096,2]
[336694864,1725036031524,310.86434753,0.00010873,2]
[336694865,1725036034526,357.26886148,0.00010899,2]
[336694866,1725036039450,357.26886148,0.00010899,2]
[336694867,1725036041464,158.19368247,0.00010873,2]
[336694868,1725036045306,357.26886148,0.00010899,2]
[336694869,1725036049485,357.26886148,0.00010899,2]
[336694870,1725036054486,357.26886148,0.00010899,2]
[336694871,1725036058802,1000.0,0.00010872,2]
[336694872,1725036059663,357.26886148,0.00010899,2]
[336694873,1725036063576,250.0,0.00010959,2]
[336694874,1725036066986,357.26886148,0.00010899,2]
[336694875,1725036082052,502.41,0.00010081,2]
[336694876,1725036082965,4386.2542,0.00010873,2]
[336694877,1725036086316,1294.03,8.219e-05,2]
[336694878,1725036086537,1294.03,0.0001048,2]
[336694879,1725036097267,500.0,0.00010101,2]
[336694880,1725036117166,150.0,0.00010747,2]
[336694881,1725036118877,3747.44845698,0.00010873,2]
[336694882,1725036137812,250.0,0.00010101,2]
[336694883,1725036155146,3000.0,0.0001086,2]
[336694884,1725036156011,150.0,0.00010882,2]
[336694885,1725036156230,15108.94322506,0.00010873,2]
[336694886,1725036156799,840.0,0.00010101,2]
[336694887,1725036161382,219.80793522,0.00010862,2]
[336694888,1725036170758,150.0,0.00010959,2]
[336694889,1725036194917,500.0,0.00010959,2]
[336694890,1725036201282,500.0,0.00010959,2]
[336694891,1725036207549,500.0,0.00010885,2]
[336694892,1725036208362,152.34,8.08e-05,2]
[336694893,1725036225241,179.36,0.00010647,2]
[336694894,1725036226371,200.0,0.00010959,2]
[336694895,1725036234945,370.38900693,0.00010873,2]
[336694896,1725036256910,310.86434742,0.00010873,2]
[336694897,1725036290934,23900.0,0.00010116,2]
[336694898,1725036298122,157.37,0.00010959,2]
[336694900,1725036309846,150.0,0.00010932,2]
[336694901,1725036355378,625.09154439,0.00010955,2]
[336694902,1725036415457,290.86586941,9.863e-05,2]
[336694903,1725036436792,232.63,0.00010145,2]
[336694904,1725036461415,916.91,0.00010142,2]
[336694905,1725036472215,250.0,0.00010142,2]
[336694906,1725036472478,310.86434742,0.00010873,2]
[336694907,1725036494424,-202.40442112,0.00010963,2]
[336694908,1725036494452,-300.0,0.00010964,2]
[336694909,1725036494479,-150.0,0.00010964,2]
[336694910,1725036494507,-2052.81363813,0.00010965,2]
[336694911,1725036494545,-4628.20537212,0.00010965,2]
[336694912,1725036500728,305.4801573,0.00010873,2]
[336694913,1725036503397,3000.0,0.0001086,2]
[336694914,1725036550633,250.0,0.00010959,2]
[336694915,1725036629721,328.0,0.00010192,2]
[336694931,1725036632223,-300.0,0.00010964,2]
[336694933,1725036632234,-150.0,0.00010965,2]
[336694935,1725036632335,-551.105575,0.00010965,2]
[336694936,1725036632447,-290.46,0.00010965,2]
[336694951,1725036632641,740.35643987,0.00010891,2]
[336694997,1725036637429,179.96437061,0.00010873,2]
[336695000,1725036638327,-585.70767439,0.00010965,2]
[336695001,1725036638548,-1003.56327,0.00010965,2]
[336695002,1725036638560,-2969.12301619,0.00010965,2]
[336695003,1725036638602,-985.02,0.00010965,2]
[336695144,1725036640514,-1383.10990743,0.00010965,2]
[336695292,1725036641953,-1621.6911387,0.00010965,2]
[336695294,1725036641964,-872.61,0.00010965,2]
[336695296,1725036641975,-51587.98814249,0.00010965,2]
[336695298,1725036641985,-3208.52041713,0.0001097,2]
[336695300,1725036641994,-4795.194833,0.00010972,2]
[336695301,1725036642004,-500.0,0.00010972,2]
[336695303,1725036642013,-461.88965921,0.00010972,2]
[336695305,1725036642022,-500.0,0.00010972,2]
[336695307,1725036642031,-500.0,0.00010972,2]
[336695309,1725036642041,-600.0,0.00010972,2]
[336695311,1725036642049,-500.0,0.00010972,2]
[336695313,1725036642059,-500.0,0.00010972,2]
[336695315,1725036642067,-500.0,0.00010972,2]
[336695317,1725036642076,-535.58177192,0.00010972,2]
[336695319,1725036642086,-428.38597972,0.00010972,2]
[336695321,1725036642097,-1000.0,0.00010972,2]
[336695323,1725036642107,-500.0,0.00010972,2]
[336695325,1725036642118,-500.0,0.00010972,2]
[336695327,1725036642127,-500.0,0.00010972,2]
[336695329,1725036642137,-500.0,0.00010972,2]
[336695331,1725036642147,-500.0,0.00010972,2]
[336695333,1725036642156,-500.0,0.00010972,2]
[336695335,1725036642166,-500.0,0.00010972,2]
[336695337,1725036642175,-3496.1495442,0.00010972,2]
[336695339,1725036642185,-13208.79805876,0.00010972,2]
[336695341,1725036642201,-280.60312417,0.00010972,2]
[336695343,1725036642213,-5982.55550222,0.00010972,2]
[336695346,1725036642224,-887.507194,0.00010972,2]
[336695348,1725036642235,-4238.28347205,0.00010972,2]
[336695350,1725036642247,-2186.5865247,0.00010972,2]
[336695352,1725036642256,-1832.50475492,0.00010972,2]
[336695354,1725036642268,-315.6,0.00010972,2]
[336695356,1725036642279,-1163.919132,0.00010972,2]
[336695358,1725036642290,-692.14449298,0.00010972,2]
[336695360,1725036642301,-2639.00360612,0.00010972,2]
[336695412,1725036643318,-876.8996675,0.00010972,2]
[336695441,1725036646599,-915.72991521,0.00010972,2]
[336695442,1725036646610,-447.49239751,0.00010972,2]
[336695447,1725036668401,1164.62,8.38e-05,2]
[336695448,1725036668648,1164.62,0.00010644,2]
[336695449,1725036677623,310.86434742,0.00010873,2]
[336695450,1725036690891,250.0,0.00010252,2]
[336695451,1725036696559,3315.56726216,0.00010899,2]
[336695452,1725036709087,168.7496316,0.000109,2]
[336695453,1725036785562,150.0,0.00010959,2]
[336695454,1725036795961,500.0,0.00010959,2]
[336695455,1725036822147,500.0,0.00010959,2]
[336695456,1725036827656,500.0,0.00010885,2]
[336695457,1725036830198,155.27,0.00010959,2]
[336695458,1725036847312,200.0,0.00010959,2]
[336695459,1725036860092,3000.0,0.0001086,2]
[336695460,1725036874868,310.86434742,0.00010873,2]
[336695461,1725036917145,23900.0,0.00010164,2]
[336695462,1725036931825,782.0,0.000101,5]
[336695463,1725036932934,232.64,0.00010164,2]
[336695465,1725036949882,989.97211812,0.00010873,2]
[336695466,1725037027495,667.39769158,0.00010873,2]
[336695467,1725037056260,250.0,0.00010194,2]
[336695468,1725037060244,310.86434742,0.00010873,2]
[336695469,1725037075429,250.0,0.00010959,2]
[336695470,1725037076661,178.16928868,0.00010873,2]
[336695471,1725037160307,458.45,0.0001019,2]
[336695472,1725037208201,3000.0,0.0001086,2]
[336695473,1725037238221,1048.15,8.299e-05,2]
[336695474,1725037238279,1048.15,0.00010563,2]
[336695475,1725037238896,310.86434742,0.00010873,2]
[336695476,1725037265651,250.0,0.00010194,2]
[336695477,1725037289832,3854.15457916,0.00010873,2]
[336695478,1725037313719,150.0,0.00010959,2]
[336695480,1725037325065,1000.0,0.00010182,2]
[336695481,1725037395435,500.0,0.00010959,2]
[336695482,1725037404928,310.86434742,0.00010873,2]
[336695483,1725037420791,500.0,0.00010959,2]
[336695484,1725037429144,500.0,0.00010885,2]
[336695485,1725037435483,213.89,0.00010178,2]
[336695486,1725037446895,200.0,0.00010959,2]
[336695487,1725037471805,170.24,0.00010199,2]
[336695488,1725037529579,23900.0,0.00010183,2]
[336695489,1725037557942,250.0,0.0001016,2]
[336695490,1725037561801,310.86434742,0.00010873,2]
[336695491,1725037564093,3000.0,0.0001086,2]
[336695492,1725037587351,179.96437061,0.00010873,2]
[336695493,1725037648851,229.22,0.0001014,2]
[336695494,1725037653442,-300.0,0.00010967,2]
[336695495,1725037653463,-17794.3677496,0.00010968,2]
[336695496,1725037653484,-2235.794155,0.00010968,2]
[336695497,1725037653505,-10811.58557976,0.0001097,2]
[336695498,1725037653525,-150.0,0.00010971,2]
[336695499,1725037653545,-2098.06769062,0.00010972,2]
[336695500,1725037653565,-500.0,0.00010972,2]
[336695501,1725037653585,-500.0,0.00010972,2]
[336695502,1725037653607,-203.61762094,0.00010972,2]
[336695503,1725037653629,-161.99084615,0.00010972,2]
[336695504,1725037653651,-214.19298986,0.00010972,2]
[336695505,1725037653671,-2000.0,0.00010972,2]
[336695506,1725037653692,-200.0,0.00010972,2]
[336695507,1725037653713,-2000.0,0.00010972,2]
[336695508,1725037653733,-3182.1018336,0.00010972,2]
[336695509,1725037653754,-3000.0,0.00010972,2]
[336695510,1725037653775,-5159.835,0.00010972,2]
[336695511,1725037653800,-142121.9265975,0.00010972,2]
[336695512,1725037653823,-49038.51993697,0.00010973,2]
[336695513,1725037681353,3399.23897511,0.0001087,2]
[336695514,1725037707312,310.86434742,0.00010873,2]
[336695515,1725037729232,500.0,8.22e-05,2]
[336695516,1725037729582,500.0,8.22e-05,2]
[336695517,1725037730855,500.0,0.0001096,2]
[336695518,1725037731187,500.0,9.59e-05,2]
[336695519,1725037732746,500.0,0.0001096,2]
[336695520,1725037739861,-561.67668851,0.00010968,2]
[336695521,1725037742575,250.0,0.00010959,2]
[336695524,1725037791083,943.33,8.299e-05,2]
[336695525,1725037791318,943.33,0.00010563,2]
[336695526,1725037816640,250.0,0.00010169,2]
[336695527,1725037830308,157.22,0.00010169,2]
[336695528,1725037830717,157.22,0.00010172,2]
[336695529,1725037831037,157.22,0.00010176,2]
[336695533,1725037831256,157.22,0.00010179,2]
[336695552,1725037831490,157.22,0.00010182,2]
[336695553,1725037831639,-678.09441823,0.00010963,2]
[336695554,1725037831648,-678.09441823,0.00010963,2]
[336695555,1725037831657,-678.09441823,0.00010963,2]
[336695556,1725037831666,-300.0,0.00010967,2]
[336695557,1725037831675,-20026.26437721,0.00010968,2]
[336695561,1725037831705,157.22,0.00010186,2]
[336695568,1725037832462,157.22,0.00010189,2]
[336695569,1725037832499,157.22,0.00010193,2]
[336695570,1725037832526,157.22,0.00010196,2]
[336695571,1725037832636,157.22,0.00010199,2]
[336695572,1725037832855,157.22,0.00010203,2]
[336695573,1725037833091,157.22,0.00010206,2]
[336695574,1725037833121,200.0,0.00010192,2]
[336695575,1725037833334,157.22,0.0001021,2]
[336695576,1725037833559,157.22,0.00010213,2]
[336695577,1725037833868,157.22,0.00010216,2]
[336695578,1725037834114,157.22,0.0001022,2]
[336695586,1725037837684,-1453.80627858,0.00010968,2]
[336695633,1725037839584,-1175.375,0.00010968,2]
[336695634,1725037839596,-404.43913485,0.00010968,2]
[336695635,1725037839608,-12.35108025,0.00010968,2]
[336695636,1725037839617,-2468.02391967,0.00010968,2]
[336695683,1725037843031,-501.48667513,0.00010968,2]
[336695685,1725037843041,-279.66779425,0.00010968,2]
[336695697,1725037843537,-258.16537885,0.00010968,2]
[336695698,1725037843548,-1783.68837491,0.00010968,2]
[336695699,1725037843559,-1915.39591479,0.00010968,2]
[336695700,1725037843569,-150.0,0.00010971,2]
[336695701,1725037843578,-214.19298985,0.00010972,2]
[336695702,1725037843588,-150.82742913,0.00010972,2]
[336695703,1725037843597,-368.74080623,0.00010972,2]
[336695704,1725037843629,310.86434742,0.00010873,2]
[336695706,1725037845589,-15039.0671312,0.00010972,2]
[336695707,1725037845600,-14808.93120972,0.00010972,2]
[336695708,1725037845612,-29360.43742428,0.00010972,2]
[336698169,1725037872955,150.5,0.000178,120]
[336698198,1725037873432,150.5,0.0001779,120]
[336698200,1725037873890,150.5,0.0001778,120]
[336698201,1725037874359,150.5,0.000178,120]
[336698202,1725037875531,166.63,0.0001779,120]
[336698203,1725037876222,79.10233005,0.000101,3]
[336698204,1725037876244,1220.89766995,0.000101,3]
[336698205,1725037878322,2700.0,0.000102,3]
[336698206,1725037880638,4000.0,0.000103,3]
[336698207,1725037882742,2079.10233005,0.000104,3]
[336698208,1725037882764,3320.89766995,0.000104,3]
[336698209,1725037884837,6679.10233005,0.000105,3]
[336698210,1725037884858,120.89766995,0.000105,3]
[336698211,1725037886921,1300.0,0.000106,3]
[336698212,1725037889035,1300.0,0.000107,3]
[336698213,1725037891124,1300.0,0.000108,3]
[336698214,1725037893336,1300.0,0.000109,3]
[336698215,1725037908257,150.0,0.00010959,2]
[336698216,1725037915960,597.84,0.00010872,2]
[336698217,1725037917299,200.0,0.00010247,2]
[336698218,1725037970758,310.86434742,0.00010873,2]
[336698219,1725038005497,2184.52293128,0.00010873,2]
[336698220,1725038006997,1235.87505135,0.0001086,2]
[336698221,1725038007376,1764.12494865,0.0001086,2]
[336698222,1725038015614,500.0,0.00010959,2]
[336698223,1725038020523,500.0,0.00010885,2]
[336698224,1725038031124,228.88,0.0001018,2]
[336698225,1725038033011,7006.99505135,0.0001018,2]
[336698226,1725038033037,10000.0,0.0001018,2]
[336698227,1725038033067,6483.73494865,0.0001018,2]
[336698228,1725038037102,200.0,0.00010959,2]
[336698229,1725038040482,172.32,0.00010179,2]
[336698230,1725038045929,3143.94505135,0.00010179,2]
[336698231,1725038045952,6856.05494865,0.00010179,2]
[336698232,1725038069749,1427.69,0.00010201,2]
[336698233,1725038088265,310.86434742,0.00010873,2]
[336698234,1725038097609,1405.39070393,0.00010868,2]
[336698235,1725038097630,4000.39922221,0.00010868,2]
[336698236,1725038162407,2870.25950349,0.00010955,2]
[336698237,1725038182664,250.0,0.00010207,2]
[336698238,1725038217316,250.0,0.00010959,2]
[336698239,1725038258990,902.78,8.28e-05,2]
[336698240,1725038259226,902.78,0.00010544,2]
[336698241,1725038276346,167.3259838,0.00010873,2]
[336698242,1725038280968,656.4552905,0.00010279,2]
[336698243,1725038280990,1319.4447095,0.00010279,2]
[336698244,1725038300672,369.97,0.00010221,2]
[336698245,1725038326283,181.94,0.00010221,2]
[336698246,1725038326645,181.94,0.00010224,2]
[336698247,1725038326887,181.94,0.00010226,2]
[336698248,1725038327087,181.94,0.00010229,2]
[336698249,1725038327332,181.94,0.00010232,2]
[336698250,1725038327571,181.94,0.00010235,2]
[336698251,1725038327812,181.94,0.00010237,2]
[336698252,1725038328055,181.94,0.0001024,2]
[336698253,1725038328272,181.94,0.00010243,2]
[336698254,1725038328485,181.94,0.00010245,2]
[336698255,1725038328698,181.94,0.00010248,2]
[336698256,1725038328925,181.94,0.00010251,2]
[336698258,1725038329164,181.94,0.00010253,2]
[336698259,1725038329401,181.94,0.00010256,2]
[336698260,1725038330011,181.94,0.00010259,2]
[336698261,1725038330056,181.94,0.00010261,2]
[336698262,1725038330262,181.94,0.00010264,2]
[336698263,1725038330480,181.94,0.00010267,2]
[336698264,1725038330792,181.94,0.00010269,2]
[336698265,1725038331032,181.94,0.00010272,2]
[336698266,1725038343462,250.0,0.00010221,2]
[336698267,1725038355099,3000.0,0.0001086,2]
[336698268,1725038411224,150.0,0.00010959,2]
[336698269,1725038433076,840.0,0.00010204,2]
[336698270,1725038534313,431.7852905,0.00010205,2]
[336698271,1725038534334,3767.5947095,0.00010205,2]
[336698272,1725038536550,3083.32366332,0.00010873,2]
[336698273,1725038583794,228.92,0.00010205,2]
[336698274,1725038617133,500.0,0.00010959,2]
[336698275,1725038622308,500.0,0.00010885,2]
[336698276,1725038638195,200.0,0.00010959,2]
[336698277,1725038710187,1720.16162718,0.0001094,2]
[336698278,1725038710210,101.08601634,0.0001094,2]
[336698279,1725038731393,3000.0,0.0001086,2]
[336698280,1725038755163,250.0,0.00010959,2]
[336698281,1725038790300,250.0,0.00010196,2]
[336698282,1725038820323,6398.91398366,0.0001088,2]
[336698283,1725038820346,649.93031852,0.0001088,2]
[336698284,1725038846503,812.5,8.254e-05,2]
[336698285,1725038846711,812.5,0.00010518,2]
[336698286,1725038895870,250.0,0.00010171,2]
[336698290,1725038948220,328.0,0.00010173,2]
[336698291,1725038951425,226.54,0.00010959,2]
[336698292,1725038960853,-249.37464487,0.00010963,2]
[336698293,1725038960881,-249.37464487,0.00010963,2]
[336698294,1725038960908,-249.37464487,0.00010963,2]
[336698295,1725038960936,-398.01507116,0.00010968,2]
[336698296,1725038969667,1827.0,0.000109,2]
[336698297,1725038985681,-1441.47827334,0.00010968,2]
[336698298,1725038985709,-1193.66772874,0.0001097,2]
[336698299,1725039011262,-357.64476608,0.0001097,2]
[336698300,1725039011290,-142.35523392,0.00010971,2]
[336698304,1725039031561,-7.64476608,0.00010971,2]
[336698305,1725039031571,-2455.1604384,0.00010971,2]
[336698306,1725039031580,-709.58147938,0.00010972,2]
[336698307,1725039031628,-2017.55230484,0.00010972,2]
[336698308,1725039031638,-89304.3766026,0.00010973,2]
[336698309,1725039031649,-1332.63115809,0.00010973,2]